[Event "Titled Tuesday Blitz July 4 Early 2023"]
[White "Karttunen, Mika"]
[Black "Rian, Kapriaga"]
[WhiteFideId "502081"]
[BlackFideId "7103263"]
[WhiteElo "2608"]
[BlackElo "2370"]
[Result "1-0"]
[Round "7"]
[TimeControl "180+2"]
[Date "2023.07.04"]
[WhiteClock "0:00:11"]
[BlackClock "0:00:00"]
[Board "80"]

1. e4 {[%clk 0:03:00]}  c6 {[%clk 0:02:51]} 2. d4 {[%clk 0:03:00]}  d5 {[%clk 0:02:51]} 3. exd5 {[%clk 0:03:00]}  cxd5 {[%clk 0:02:50]} 4. Bd3 {[%clk 0:03:01]}  Nc6 {[%clk 0:02:49]} 5. c3 {[%clk 0:03:01]}  Qc7 {[%clk 0:02:49]} 6. h3 {[%clk 0:02:59]}  g6 {[%clk 0:02:47]} 7. Nf3 {[%clk 0:02:59]}  Bf5 {[%clk 0:02:46]} 8. Be2 {[%clk 0:02:59]}  Nf6 {[%clk 0:02:45]} 9. O-O {[%clk 0:02:57]}  Bg7 {[%clk 0:02:44]} 10. Be3 {[%clk 0:02:56]}  O-O {[%clk 0:02:42]} 11. Nbd2 {[%clk 0:02:56]}  Rfe8 {[%clk 0:02:36]} 12. a4 {[%clk 0:02:38]}  Rad8 {[%clk 0:02:35]} 13. Bb5 {[%clk 0:02:31]}  a6 {[%clk 0:02:24]} 14. Bxc6 {[%clk 0:02:26]}  bxc6 {[%clk 0:02:25]} 15. a5 {[%clk 0:02:20]}  Nd7 {[%clk 0:02:20]} 16. b4 {[%clk 0:02:16]}  e5 {[%clk 0:02:09]} 17. Nb3 {[%clk 0:02:09]}  e4 {[%clk 0:01:59]} 18. Nh2 {[%clk 0:01:42]}  h5 {[%clk 0:01:57]} 19. Qd2 {[%clk 0:01:32]}  Nf8 {[%clk 0:01:46]} 20. Bf4 {[%clk 0:01:32]}  Qc8 {[%clk 0:01:43]} 21. Kh1 {[%clk 0:01:28]}  Ne6 {[%clk 0:01:42]} 22. Be3 {[%clk 0:01:29]}  Nc7 {[%clk 0:01:24]} 23. Rg1 {[%clk 0:01:24]}  Bf8 {[%clk 0:01:22]} 24. g4 {[%clk 0:01:16]}  hxg4 {[%clk 0:01:21]} 25. hxg4 {[%clk 0:01:16]}  Be6 {[%clk 0:01:14]} 26. Nc5 {[%clk 0:01:07]}  Bd6 {[%clk 0:00:58]} 27. Bf4 {[%clk 0:01:01]}  Nb5 {[%clk 0:00:50]} 28. Bxd6 {[%clk 0:00:58]}  Nxd6 {[%clk 0:00:48]} 29. Rg3 {[%clk 0:00:55]}  Kg7 {[%clk 0:00:47]} 30. Qf4 {[%clk 0:00:53]}  Nc4 {[%clk 0:00:38]} 31. g5 {[%clk 0:00:30]}  Bf5 {[%clk 0:00:30]} 32. Ng4 {[%clk 0:00:29]}  Bxg4 {[%clk 0:00:22]} 33. Rxg4 {[%clk 0:00:27]}  Rh8+ {[%clk 0:00:21]} 34. Kg2 {[%clk 0:00:27]}  Rh5 {[%clk 0:00:12]} 35. Rg1 {[%clk 0:00:22]}  Rdh8 {[%clk 0:00:11]} 36. Kf1 {[%clk 0:00:23]}  Qf5 {[%clk 0:00:08]} 37. Qxf5 {[%clk 0:00:21]}  gxf5 {[%clk 0:00:09]} 38. Rf4 {[%clk 0:00:22]}  Kg6 {[%clk 0:00:08]} 39. Nxa6 {[%clk 0:00:22]}  Rh2 {[%clk 0:00:06]} 40. Nc5 {[%clk 0:00:12]}  R8h3 {[%clk 0:00:00]} 41. Nd7 {[%clk 0:00:11]} 1-0


[Site "https://www.chess.com"]

[Event "Titled Tuesday Blitz July 4 Early 2023"]
[White "Andreassen, Lars"]
[Black "Piesik, Piotr"]
[WhiteFideId "1504878"]
[BlackFideId "1136194"]
[WhiteElo "2265"]
[BlackElo "2605"]
[Result "1-0"]
[Round "7"]
[TimeControl "180+2"]
[Date "2023.07.04"]
[WhiteClock "0:00:40"]
[BlackClock "0:01:00"]
[Board "81"]

1. d4 {[%clk 0:03:00]}  c5 {[%clk 0:02:56]} 2. d5 {[%clk 0:02:59]}  e5 {[%clk 0:02:57]} 3. e4 {[%clk 0:02:58]}  d6 {[%clk 0:02:57]} 4. h4 {[%clk 0:02:53]}  Be7 {[%clk 0:02:57]} 5. g3 {[%clk 0:02:51]}  f5 {[%clk 0:02:53]} 6. exf5 {[%clk 0:02:40]}  Bxf5 {[%clk 0:02:52]} 7. g4 {[%clk 0:02:35]}  Bg6 {[%clk 0:02:49]} 8. h5 {[%clk 0:02:29]}  Bf7 {[%clk 0:02:49]} 9. c4 {[%clk 0:02:27]}  Bg5 {[%clk 0:02:47]} 10. Nc3 {[%clk 0:02:26]}  Bxc1 {[%clk 0:02:46]} 11. Rxc1 {[%clk 0:02:24]}  Nf6 {[%clk 0:02:45]} 12. g5 {[%clk 0:02:18]}  Nxh5 {[%clk 0:02:37]} 13. Rxh5 {[%clk 0:02:15]}  Bxh5 {[%clk 0:02:37]} 14. Qxh5+ {[%clk 0:02:15]}  g6 {[%clk 0:02:38]} 15. Qh6 {[%clk 0:02:11]}  Qe7 {[%clk 0:02:36]} 16. Ne4 {[%clk 0:02:10]}  Nd7 {[%clk 0:02:36]} 17. Bh3 {[%clk 0:02:05]}  Rf8 {[%clk 0:02:33]} 18. Bxd7+ {[%clk 0:01:55]}  Kxd7 {[%clk 0:02:33]} 19. Nf6+ {[%clk 0:01:55]}  Kc7 {[%clk 0:02:33]} 20. Ne2 {[%clk 0:01:53]}  Rf7 {[%clk 0:02:29]} 21. Nc3 {[%clk 0:01:52]}  a6 {[%clk 0:02:28]} 22. Nce4 {[%clk 0:01:50]}  b5 {[%clk 0:02:28]} 23. b4 {[%clk 0:01:44]}  Kb6 {[%clk 0:02:14]} 24. a3 {[%clk 0:01:33]}  Rc8 {[%clk 0:02:08]} 25. bxc5+ {[%clk 0:01:22]}  dxc5 {[%clk 0:02:07]} 26. Qh3 {[%clk 0:01:20]}  Kb7 {[%clk 0:01:38]} 27. cxb5 {[%clk 0:01:13]}  axb5 {[%clk 0:01:38]} 28. d6 {[%clk 0:01:11]}  Qd8 {[%clk 0:01:37]} 29. Nxc5+ {[%clk 0:01:08]}  Ka7 {[%clk 0:01:37]} 30. Qe3 {[%clk 0:01:01]}  Qb6 {[%clk 0:01:32]} 31. d7 {[%clk 0:00:53]}  Rd8 {[%clk 0:01:30]} 32. a4 {[%clk 0:00:45]}  bxa4 {[%clk 0:01:23]} 33. Ra1 {[%clk 0:00:45]}  Qb4+ {[%clk 0:01:18]} 34. Kf1 {[%clk 0:00:44]}  Qc4+ {[%clk 0:01:17]} 35. Kg1 {[%clk 0:00:42]}  Kb6 {[%clk 0:01:06]} 36. Rxa4 {[%clk 0:00:41]}  Qxc5 {[%clk 0:01:04]} 37. Ra6+ {[%clk 0:00:40]}  Kb5 {[%clk 0:01:00]} 38. Ra5+ {[%clk 0:00:40]} 1-0


[Site "https://www.chess.com"]

[Event "Titled Tuesday Blitz July 4 Early 2023"]
[White "Guliev, Logman"]
[Black "Bharath Subramaniyam H"]
[WhiteFideId "13400061"]
[BlackFideId "46634827"]
[WhiteElo "2504"]
[BlackElo "2809"]
[Result "0-1"]
[Round "7"]
[TimeControl "180+2"]
[Date "2023.07.04"]
[WhiteClock "0:00:00"]
[BlackClock "0:00:38"]
[Board "83"]

1. e4 {[%clk 0:03:00]}  c5 {[%clk 0:02:53]} 2. Nf3 {[%clk 0:03:00]}  d6 {[%clk 0:02:53]} 3. d4 {[%clk 0:03:00]}  cxd4 {[%clk 0:02:54]} 4. Nxd4 {[%clk 0:03:00]}  Nf6 {[%clk 0:02:55]} 5. Nc3 {[%clk 0:03:01]}  a6 {[%clk 0:02:55]} 6. f4 {[%clk 0:03:00]}  e5 {[%clk 0:02:55]} 7. Nf3 {[%clk 0:03:01]}  Nc6 {[%clk 0:02:53]} 8. Bd3 {[%clk 0:02:59]}  Be7 {[%clk 0:02:52]} 9. O-O {[%clk 0:02:57]}  O-O {[%clk 0:02:48]} 10. Kh1 {[%clk 0:02:57]}  b5 {[%clk 0:02:45]} 11. a3 {[%clk 0:02:56]}  Bb7 {[%clk 0:02:42]} 12. Nh4 {[%clk 0:02:56]}  g6 {[%clk 0:02:19]} 13. f5 {[%clk 0:02:47]}  Nd4 {[%clk 0:02:08]} 14. Bh6 {[%clk 0:02:44]}  Re8 {[%clk 0:02:06]} 15. fxg6 {[%clk 0:02:38]}  hxg6 {[%clk 0:02:04]} 16. Bg5 {[%clk 0:02:26]}  Nh5 {[%clk 0:01:59]} 17. Bxe7 {[%clk 0:02:23]}  Qxe7 {[%clk 0:02:00]} 18. Nf3 {[%clk 0:02:23]}  Ne6 {[%clk 0:01:32]} 19. Qe1 {[%clk 0:02:09]}  Nef4 {[%clk 0:01:26]} 20. Rd1 {[%clk 0:02:06]}  Rac8 {[%clk 0:01:17]} 21. g3 {[%clk 0:01:43]}  Nxd3 {[%clk 0:01:16]} 22. Rxd3 {[%clk 0:01:43]}  f5 {[%clk 0:01:16]} 23. Nd2 {[%clk 0:01:27]}  Nf6 {[%clk 0:01:00]} 24. Kg1 {[%clk 0:01:24]}  d5 {[%clk 0:00:53]} 25. exf5 {[%clk 0:01:00]}  Qc5+ {[%clk 0:00:45]} 26. Qf2 {[%clk 0:00:44]}  Qxf2+ {[%clk 0:00:43]} 27. Rxf2 {[%clk 0:00:44]}  e4 {[%clk 0:00:42]} 28. Re3 {[%clk 0:00:07]}  d4 {[%clk 0:00:40]} 29. Rxe4 {[%clk 0:00:00]}  Nxe4 {[%clk 0:00:38]} 0-1


[Site "https://www.chess.com"]

[Event "Titled Tuesday Blitz July 4 Early 2023"]
[White "Yedidia, Daniel"]
[Black "Hambleton, Aman"]
[WhiteFideId "30905907"]
[BlackFideId "2606577"]
[WhiteElo "2498"]
[BlackElo "2765"]
[Result "0-1"]
[Round "7"]
[TimeControl "180+2"]
[Date "2023.07.04"]
[WhiteClock "0:00:00"]
[BlackClock "0:00:02"]
[Board "84"]

1. d4 {[%clk 0:03:00]}  e5 {[%clk 0:02:57]} 2. Nf3 {[%clk 0:02:58]}  e4 {[%clk 0:02:54]} 3. Nfd2 {[%clk 0:02:58]}  d5 {[%clk 0:02:55]} 4. e3 {[%clk 0:02:58]}  f5 {[%clk 0:02:50]} 5. c4 {[%clk 0:02:58]}  c6 {[%clk 0:02:48]} 6. Nc3 {[%clk 0:02:59]}  Nf6 {[%clk 0:02:49]} 7. Be2 {[%clk 0:02:51]}  a6 {[%clk 0:02:46]} 8. c5 {[%clk 0:02:47]}  Be6 {[%clk 0:02:32]} 9. b4 {[%clk 0:02:38]}  Nbd7 {[%clk 0:02:28]} 10. Bb2 {[%clk 0:02:34]}  Be7 {[%clk 0:02:16]} 11. h3 {[%clk 0:02:26]}  O-O {[%clk 0:02:07]} 12. Qb3 {[%clk 0:02:20]}  Bf7 {[%clk 0:01:22]} 13. g4 {[%clk 0:01:35]}  fxg4 {[%clk 0:01:22]} 14. hxg4 {[%clk 0:01:35]}  h6 {[%clk 0:01:22]} 15. O-O-O {[%clk 0:01:32]}  Nh7 {[%clk 0:01:17]} 16. Rdf1 {[%clk 0:01:17]}  Ng5 {[%clk 0:01:16]} 17. Qc2 {[%clk 0:00:58]}  Bg6 {[%clk 0:00:47]} 18. Bd1 {[%clk 0:00:47]}  Qe8 {[%clk 0:00:35]} 19. Qb3 {[%clk 0:00:46]}  Kh7 {[%clk 0:00:33]} 20. Bc2 {[%clk 0:00:45]}  Nf6 {[%clk 0:00:32]} 21. Rfg1 {[%clk 0:00:26]}  Qd7 {[%clk 0:00:27]} 22. Bd1 {[%clk 0:00:17]}  Rae8 {[%clk 0:00:16]} 23. Rg2 {[%clk 0:00:16]}  Bd8 {[%clk 0:00:15]} 24. Ne2 {[%clk 0:00:16]}  Kh8 {[%clk 0:00:11]} 25. Nf4 {[%clk 0:00:17]}  Bh7 {[%clk 0:00:11]} 26. a4 {[%clk 0:00:10]}  Bc7 {[%clk 0:00:11]} 27. Nh3 {[%clk 0:00:08]}  Kg8 {[%clk 0:00:02]} 28. Nxg5 {[%clk 0:00:08]}  hxg5 {[%clk 0:00:03]} 29. Rgh2 {[%clk 0:00:08]}  Bg6 {[%clk 0:00:03]} 30. Rg2 {[%clk 0:00:08]}  Re7 {[%clk 0:00:03]} 31. Nf1 {[%clk 0:00:09]}  Ref7 {[%clk 0:00:03]} 32. Ng3 {[%clk 0:00:09]}  Bxg3 {[%clk 0:00:01]} 33. Rxg3 {[%clk 0:00:10]}  Nh7 {[%clk 0:00:01]} 34. f4 {[%clk 0:00:07]}  exf3 {[%clk 0:00:01]} 35. Bc2 {[%clk 0:00:08]}  Bxc2 {[%clk 0:00:01]} 36. Qxc2 {[%clk 0:00:09]}  g6 {[%clk 0:00:01]} 37. Qxg6+ {[%clk 0:00:08]}  Rg7 {[%clk 0:00:02]} 38. Qd3 {[%clk 0:00:08]}  Qe6 {[%clk 0:00:01]} 39. Rf1 {[%clk 0:00:08]}  Qe4 {[%clk 0:00:02]} 40. Kd2 {[%clk 0:00:07]}  Rgf7 {[%clk 0:00:02]} 41. Rf2 {[%clk 0:00:05]}  Nf6 {[%clk 0:00:01]} 42. Rgxf3 {[%clk 0:00:02]}  Qxd3+ {[%clk 0:00:01]} 43. Kxd3 {[%clk 0:00:03]}  Nxg4 {[%clk 0:00:02]} 44. Rxf7 {[%clk 0:00:00]}  Nxf2+ {[%clk 0:00:02]} 0-1


[Site "https://www.chess.com"]

[Event "Titled Tuesday Blitz July 4 Early 2023"]
[White "Ashraf, Artin"]
[Black "Gheorghiu, Calin"]
[WhiteFideId "22514805"]
[BlackFideId "1200305"]
[WhiteElo "2734"]
[BlackElo "2493"]
[Result "1-0"]
[Round "7"]
[TimeControl "180+2"]
[Date "2023.07.04"]
[WhiteClock "0:00:13"]
[BlackClock "0:00:05"]
[Board "85"]

1. e4 {[%clk 0:03:00]}  c5 {[%clk 0:02:59]} 2. Nf3 {[%clk 0:03:00]}  d6 {[%clk 0:02:57]} 3. d4 {[%clk 0:02:58]}  cxd4 {[%clk 0:02:58]} 4. Nxd4 {[%clk 0:02:59]}  Nf6 {[%clk 0:02:59]} 5. Nc3 {[%clk 0:03:00]}  a6 {[%clk 0:02:59]} 6. Be2 {[%clk 0:02:59]}  e5 {[%clk 0:02:58]} 7. Nb3 {[%clk 0:02:59]}  Be7 {[%clk 0:02:58]} 8. Be3 {[%clk 0:02:57]}  Be6 {[%clk 0:02:57]} 9. O-O {[%clk 0:02:56]}  O-O {[%clk 0:02:57]} 10. Qd3 {[%clk 0:02:56]}  b5 {[%clk 0:02:51]} 11. a4 {[%clk 0:02:43]}  Bc4 {[%clk 0:02:38]} 12. Qd1 {[%clk 0:02:35]}  Bxe2 {[%clk 0:02:37]} 13. Qxe2 {[%clk 0:02:34]}  b4 {[%clk 0:02:31]} 14. Nd5 {[%clk 0:02:33]}  Nxd5 {[%clk 0:02:30]} 15. exd5 {[%clk 0:02:33]}  f5 {[%clk 0:02:19]} 16. a5 {[%clk 0:02:31]}  Nd7 {[%clk 0:02:18]} 17. f3 {[%clk 0:02:27]}  Qc7 {[%clk 0:02:14]} 18. Rfc1 {[%clk 0:02:20]}  Qb7 {[%clk 0:01:43]} 19. Qd3 {[%clk 0:02:08]}  Rac8 {[%clk 0:01:34]} 20. Ra4 {[%clk 0:02:04]}  Nf6 {[%clk 0:00:54]} 21. Rd1 {[%clk 0:01:52]}  e4 {[%clk 0:00:50]} 22. Qd2 {[%clk 0:01:51]}  Rc4 {[%clk 0:00:48]} 23. f4 {[%clk 0:01:28]}  Rfc8 {[%clk 0:00:46]} 24. Nd4 {[%clk 0:01:28]}  Nxd5 {[%clk 0:00:39]} 25. Nxf5 {[%clk 0:01:27]}  Nxe3 {[%clk 0:00:21]} 26. Nxe3 {[%clk 0:01:25]}  R4c5 {[%clk 0:00:20]} 27. Rxb4 {[%clk 0:01:25]}  Qa7 {[%clk 0:00:19]} 28. Rb6 {[%clk 0:01:18]}  d5 {[%clk 0:00:10]} 29. b4 {[%clk 0:01:15]}  Rb5 {[%clk 0:00:08]} 30. Nxd5 {[%clk 0:01:07]}  Bxb4 {[%clk 0:00:07]} 31. Nxb4 {[%clk 0:01:02]}  Rxb6 {[%clk 0:00:07]} 32. axb6 {[%clk 0:00:58]}  Qxb6+ {[%clk 0:00:07]} 33. Qd4 {[%clk 0:00:31]}  Qxd4+ {[%clk 0:00:07]} 34. Rxd4 {[%clk 0:00:26]}  a5 {[%clk 0:00:08]} 35. Nd5 {[%clk 0:00:17]}  Rxc2 {[%clk 0:00:07]} 36. Rxe4 {[%clk 0:00:17]}  Rd2 {[%clk 0:00:07]} 37. Ne7+ {[%clk 0:00:12]}  Kf7 {[%clk 0:00:07]} 38. Nc6 {[%clk 0:00:13]}  Ra2 {[%clk 0:00:07]} 39. g4 {[%clk 0:00:12]}  a4 {[%clk 0:00:07]} 40. Nd8+ {[%clk 0:00:12]}  Kf8 {[%clk 0:00:06]} 41. Ne6+ {[%clk 0:00:12]}  Kf7 {[%clk 0:00:07]} 42. Ng5+ {[%clk 0:00:13]}  Kg6 {[%clk 0:00:05]} 43. Re6# {[%clk 0:00:13]} 1-0


[Site "https://www.chess.com"]

[Event "Titled Tuesday Blitz July 4 Early 2023"]
[White "Reprintsev, Alexander"]
[Black "Zhu, Jiner"]
[WhiteFideId "14100541"]
[BlackFideId "8608059"]
[WhiteElo "2482"]
[BlackElo "2655"]
[Result "0-1"]
[Round "7"]
[TimeControl "180+2"]
[Date "2023.07.04"]
[WhiteClock "0:00:34"]
[BlackClock "0:01:01"]
[Board "87"]

1. e4 {[%clk 0:03:00]}  g6 {[%clk 0:03:00]} 2. d4 {[%clk 0:03:00]}  Bg7 {[%clk 0:03:01]} 3. Nc3 {[%clk 0:03:00]}  d6 {[%clk 0:03:02]} 4. h4 {[%clk 0:03:00]}  Nf6 {[%clk 0:03:00]} 5. h5 {[%clk 0:02:59]}  Nxh5 {[%clk 0:03:00]} 6. g4 {[%clk 0:02:59]}  Nf6 {[%clk 0:02:59]} 7. g5 {[%clk 0:02:59]}  Ng8 {[%clk 0:02:58]} 8. Be3 {[%clk 0:02:50]}  h5 {[%clk 0:02:54]} 9. Qd2 {[%clk 0:02:48]}  e5 {[%clk 0:02:52]} 10. f4 {[%clk 0:02:39]}  Nc6 {[%clk 0:02:32]} 11. fxe5 {[%clk 0:02:32]}  dxe5 {[%clk 0:02:31]} 12. d5 {[%clk 0:02:32]}  Nd4 {[%clk 0:02:30]} 13. O-O-O {[%clk 0:02:32]}  Ne7 {[%clk 0:02:25]} 14. Nce2 {[%clk 0:02:30]}  c5 {[%clk 0:02:21]} 15. dxc6 {[%clk 0:02:11]}  Nexc6 {[%clk 0:02:18]} 16. c3 {[%clk 0:02:03]}  Nxe2+ {[%clk 0:02:17]} 17. Qxe2 {[%clk 0:01:59]}  Qe7 {[%clk 0:02:13]} 18. Qb5 {[%clk 0:01:53]}  O-O {[%clk 0:02:11]} 19. Bc4 {[%clk 0:01:51]}  a6 {[%clk 0:02:06]} 20. Qb6 {[%clk 0:01:50]}  Bg4 {[%clk 0:02:04]} 21. Bc5 {[%clk 0:01:47]}  Qxg5+ {[%clk 0:02:04]} 22. Be3 {[%clk 0:01:42]}  Qf6 {[%clk 0:01:57]} 23. Rd2 {[%clk 0:01:38]}  Rad8 {[%clk 0:01:54]} 24. Ne2 {[%clk 0:01:24]}  Rxd2 {[%clk 0:01:52]} 25. Bxd2 {[%clk 0:01:24]}  Bxe2 {[%clk 0:01:41]} 26. Bxe2 {[%clk 0:01:24]}  Nd4 {[%clk 0:01:42]} 27. Qxf6 {[%clk 0:01:13]}  Nxe2+ {[%clk 0:01:41]} 28. Kd1 {[%clk 0:01:14]}  Nxc3+ {[%clk 0:01:41]} 29. bxc3 {[%clk 0:01:08]}  Bxf6 {[%clk 0:01:42]} 30. Ke2 {[%clk 0:01:09]}  Kg7 {[%clk 0:01:41]} 31. Rb1 {[%clk 0:01:09]}  b5 {[%clk 0:01:41]} 32. a4 {[%clk 0:01:09]}  bxa4 {[%clk 0:01:41]} 33. Rb6 {[%clk 0:01:08]}  Ra8 {[%clk 0:01:33]} 34. Bc1 {[%clk 0:01:08]}  h4 {[%clk 0:01:32]} 35. Kf3 {[%clk 0:01:07]}  Rc8 {[%clk 0:01:26]} 36. Bd2 {[%clk 0:00:56]}  Rd8 {[%clk 0:01:26]} 37. Be1 {[%clk 0:00:54]}  Ra8 {[%clk 0:01:17]} 38. Kg4 {[%clk 0:00:50]}  a3 {[%clk 0:01:09]} 39. Rb3 {[%clk 0:00:49]}  Be7 {[%clk 0:01:08]} 40. c4 {[%clk 0:00:45]}  Rc8 {[%clk 0:01:03]} 41. Rb6 {[%clk 0:00:36]}  Rxc4 {[%clk 0:01:01]} 42. Rxa6 {[%clk 0:00:34]}  Rxe4+ {[%clk 0:01:01]} 0-1


[Site "https://www.chess.com"]

[Event "Titled Tuesday Blitz July 4 Early 2023"]
[White "UNSTOPPABLE_LEGEND"]
[Black "Tan, Jun Ying"]
[BlackFideId "5710413"]
[WhiteElo "2478"]
[BlackElo "2634"]
[Result "0-1"]
[Round "7"]
[TimeControl "180+2"]
[Date "2023.07.04"]
[WhiteClock "0:01:03"]
[BlackClock "0:00:58"]
[Board "89"]

1. g3 {[%clk 0:03:00]}  g6 {[%clk 0:03:00]} 2. Bg2 {[%clk 0:03:00]}  Bg7 {[%clk 0:03:01]} 3. Nf3 {[%clk 0:03:01]}  b6 {[%clk 0:02:55]} 4. O-O {[%clk 0:03:01]}  Bb7 {[%clk 0:02:56]} 5. d4 {[%clk 0:03:01]}  Nf6 {[%clk 0:02:56]} 6. c4 {[%clk 0:03:00]}  O-O {[%clk 0:02:56]} 7. Nc3 {[%clk 0:03:00]}  e6 {[%clk 0:02:56]} 8. Qc2 {[%clk 0:02:59]}  d6 {[%clk 0:02:55]} 9. e4 {[%clk 0:02:58]}  Nbd7 {[%clk 0:02:56]} 10. h3 {[%clk 0:02:56]}  e5 {[%clk 0:02:56]} 11. d5 {[%clk 0:02:55]}  Nh5 {[%clk 0:02:52]} 12. Bd2 {[%clk 0:02:44]}  a5 {[%clk 0:02:51]} 13. Rae1 {[%clk 0:02:42]}  Nc5 {[%clk 0:02:47]} 14. a3 {[%clk 0:02:40]}  a4 {[%clk 0:02:47]} 15. Be3 {[%clk 0:02:40]}  Bc8 {[%clk 0:02:42]} 16. Bxc5 {[%clk 0:02:38]}  bxc5 {[%clk 0:02:42]} 17. Nxa4 {[%clk 0:02:38]}  f5 {[%clk 0:02:43]} 18. Nd2 {[%clk 0:02:34]}  f4 {[%clk 0:02:03]} 19. g4 {[%clk 0:02:13]}  f3 {[%clk 0:02:02]} 20. Nxf3 {[%clk 0:02:11]}  Nf4 {[%clk 0:02:02]} 21. Nc3 {[%clk 0:02:11]}  Nxh3+ {[%clk 0:01:59]} 22. Bxh3 {[%clk 0:02:06]}  Rxf3 {[%clk 0:02:00]} 23. Kg2 {[%clk 0:02:06]}  Qh4 {[%clk 0:01:03]} 24. Kxf3 {[%clk 0:01:48]}  Qxh3+ {[%clk 0:01:03]} 25. Ke2 {[%clk 0:01:48]}  Bxg4+ {[%clk 0:01:04]} 26. f3 {[%clk 0:01:48]}  Qg2+ {[%clk 0:01:03]} 27. Kd3 {[%clk 0:01:40]}  Qh3 {[%clk 0:01:02]} 28. Qf2 {[%clk 0:01:21]}  Rf8 {[%clk 0:01:00]} 29. Re3 {[%clk 0:01:22]}  Bh6 {[%clk 0:00:58]} 30. fxg4 {[%clk 0:01:04]}  Rxf2 {[%clk 0:00:58]} 31. Rxh3 {[%clk 0:01:03]}  Rd2# {[%clk 0:00:58]} 0-1


[Site "https://www.chess.com"]

[Event "Titled Tuesday Blitz July 4 Early 2023"]
[White "Soham Kamotra"]
[Black "Balla, Tamas-Kristof"]
[WhiteFideId "46647490"]
[BlackFideId "1208497"]
[WhiteElo "2630"]
[BlackElo "2472"]
[Result "1-0"]
[Round "7"]
[TimeControl "180+2"]
[Date "2023.07.04"]
[WhiteClock "0:00:02"]
[BlackClock "0:00:01"]
[Board "90"]

1. d4 {[%clk 0:03:00]}  d5 {[%clk 0:02:59]} 2. Nc3 {[%clk 0:03:01]}  Nf6 {[%clk 0:02:57]} 3. Bf4 {[%clk 0:03:02]}  a6 {[%clk 0:02:57]} 4. e3 {[%clk 0:03:01]}  e6 {[%clk 0:02:56]} 5. g4 {[%clk 0:03:00]}  c5 {[%clk 0:02:55]} 6. g5 {[%clk 0:03:00]}  Nfd7 {[%clk 0:02:55]} 7. Qf3 {[%clk 0:02:59]}  Nc6 {[%clk 0:02:49]} 8. Nge2 {[%clk 0:02:55]}  b5 {[%clk 0:02:46]} 9. Qg3 {[%clk 0:02:55]}  Bb7 {[%clk 0:02:39]} 10. Bg2 {[%clk 0:02:52]}  Be7 {[%clk 0:02:33]} 11. h4 {[%clk 0:02:51]}  c4 {[%clk 0:02:32]} 12. h5 {[%clk 0:02:46]}  b4 {[%clk 0:02:11]} 13. Nxd5 {[%clk 0:02:45]}  exd5 {[%clk 0:02:09]} 14. Bxd5 {[%clk 0:02:46]}  Qa5 {[%clk 0:01:49]} 15. Qg2 {[%clk 0:02:41]}  Rc8 {[%clk 0:01:43]} 16. Rg1 {[%clk 0:02:01]}  b3+ {[%clk 0:01:27]} 17. c3 {[%clk 0:01:58]}  bxa2 {[%clk 0:01:24]} 18. g6 {[%clk 0:01:56]}  hxg6 {[%clk 0:01:24]} 19. Bxf7+ {[%clk 0:01:44]}  Kd8 {[%clk 0:01:15]} 20. Qxg6 {[%clk 0:01:44]}  Qb5 {[%clk 0:00:56]} 21. Rxa2 {[%clk 0:01:17]}  Qb3 {[%clk 0:00:55]} 22. Qxg7 {[%clk 0:01:11]}  Rf8 {[%clk 0:00:54]} 23. Ra1 {[%clk 0:00:59]}  Qxb2 {[%clk 0:00:52]} 24. Rd1 {[%clk 0:00:57]}  Bf6 {[%clk 0:00:52]} 25. Qg6 {[%clk 0:00:54]}  Ne7 {[%clk 0:00:52]} 26. Qh7 {[%clk 0:00:44]}  Bf3 {[%clk 0:00:49]} 27. Rd2 {[%clk 0:00:35]}  Qa1+ {[%clk 0:00:39]} 28. Rd1 {[%clk 0:00:34]}  Qb2 {[%clk 0:00:40]} 29. Rd2 {[%clk 0:00:34]}  Qa3 {[%clk 0:00:34]} 30. Be6 {[%clk 0:00:27]}  Rb8 {[%clk 0:00:34]} 31. Bxb8 {[%clk 0:00:20]}  Nxb8 {[%clk 0:00:30]} 32. Qb1 {[%clk 0:00:18]}  Nbc6 {[%clk 0:00:30]} 33. Qb6+ {[%clk 0:00:17]}  Ke8 {[%clk 0:00:26]} 34. Rg3 {[%clk 0:00:15]}  Bh4 {[%clk 0:00:24]} 35. Qc7 {[%clk 0:00:07]}  Rh8 {[%clk 0:00:06]} 36. Qd7+ {[%clk 0:00:06]}  Kf8 {[%clk 0:00:07]} 37. Rxf3+ {[%clk 0:00:07]}  Kg7 {[%clk 0:00:06]} 38. Nf4 {[%clk 0:00:06]}  Qa1+ {[%clk 0:00:06]} 39. Ke2 {[%clk 0:00:06]}  Qb1 {[%clk 0:00:06]} 40. Nd5 {[%clk 0:00:04]}  Rf8 {[%clk 0:00:03]} 41. Rxf8 {[%clk 0:00:04]}  Kxf8 {[%clk 0:00:03]} 42. Nxe7 {[%clk 0:00:03]}  Nxe7 {[%clk 0:00:03]} 43. Qd8+ {[%clk 0:00:03]}  Kg7 {[%clk 0:00:04]} 44. Qe8 {[%clk 0:00:03]}  Qg1 {[%clk 0:00:02]} 45. Qf7+ {[%clk 0:00:03]}  Kh6 {[%clk 0:00:02]} 46. Rd1 {[%clk 0:00:02]}  Qg4+ {[%clk 0:00:01]} 47. Bxg4 {[%clk 0:00:02]} 1-0


[Site "https://www.chess.com"]